[Event "44th Chess Olympiad Open 2022"]
[Site "Chennai"]
[Date "2022.07.29"]
[Round "1.60"]
[White "Berardi, Giancarlo"]
[Black "Rodgaard, John"]
[Result "0-1"]
[WhiteElo "1757"]
[BlackElo "2324"]
[Annotator "TA"]
[PlyCount "118"]
[EventDate "2022.??.??"]
[TimeControl "60"]

{[%evp 11,118,0,0,0,-7,-11,9,-3,0,0,10,13,24,6,14,4,57,45,48,54,41,44,62,72,69,
79,70,57,71,56,58,58,53,50,57,25,35,25,27,26,31,22,22,19,14,16,25,17,25,19,20,
17,25,0,13,-9,0,0,0,0,0,-29,6,5,4,0,0,0,33,-144,-120,-129,-104,-216,-178,-280,
-278,-394,-386,-378,-281,-277,-275,-345,-281,-334,-270,-363,-159,-408,-387,
-29973,-29975,-29975,-29975,-29974,-29973,-29979,-29979,-29982,-29983,-29984,
-29985,-29985,-29986,-29986,-29987,-29988,-29989]} 1. c4 {[%emt 0:00:07]} e6 {
[%emt 0:00:42]} 2. g3 {[%emt 0:00:59]} d5 {[%emt 0:00:59]} 3. cxd5 {[%emt 0:00:
00]} exd5 {[%emt 0:00:26]} 4. Bg2 {[%emt 0:00:23]} Nf6 {[%emt 0:01:11]} 5. Nf3
{[%emt 0:01:47]} Bd6 {[%emt 0:06:17]} 6. O-O {[%emt 0:05:13]} O-O {[%emt 0:00:
00]} 7. Nc3 {[%emt 0:01:10] A13: English Opening: 1...e6.} c6 {[%emt 0:18:18]}
8. a3 {[%emt 0:07:03] [#]} h6 $146 {[%emt 0:16:31]} ({Predecessor:} 8... a5 9.
b3 Re8 10. Bb2 Bg4 11. h3 Bxf3 12. Bxf3 h5 13. h4 Qc7 14. Kg2 Nbd7 {0-1 (27)
Weingraber,L (1496)-Moerwald,M (1528) Playchess.com INT 2020}) 9. b4 {[%emt 0:
00:00] The position is equal.} (9. d3 {feels hotter.} Re8 10. e4 Bg4 11. h3)
9... a6 {[%emt 0:04:56]} 10. Bb2 {[%emt 0:01:22]} Bf5 {[%emt 0:03:53]} 11. d3 {
[%emt 0:07:10][%cal Ye2e4]} Re8 {[%emt 0:04:14] Against e4} 12. Re1 {[%emt 0:
00:00][%cal Ye2e4]} Nbd7 {[%emt 0:12:55]} 13. e4 {[%emt 0:09:44]} Bh7 {[%emt 0:
00:00]} (13... Bg4 $11) 14. exd5 $14 {[%emt 0:03:24]} cxd5 {[%emt 0:00:41]} 15.
Rxe8+ {[%emt 0:03:25]} Qxe8 {[%emt 0:00:19]} 16. Qd2 {[%emt 0:04:17]} Nb6 {
[%emt 0:03:36]} 17. Re1 {[%emt 0:01:55]} Qd8 {[%emt 0:01:21]} 18. Nd4 {[%emt 0:
00:00]} Rc8 {[%emt 0:02:08]} 19. Bh3 {[%emt 0:03:14]} Rc7 {[%emt 0:01:50]} 20.
Nf5 {[%emt 0:07:51]} Bxf5 {[%emt 0:00:46]} 21. Bxf5 {[%emt 0:00:39]} Re7 {
[%emt 0:03:05]} 22. Rxe7 {[%emt 0:02:21]} (22. Nd1 {looks sharper.} Nfd7 23.
Rxe7 Qxe7 24. f4) 22... Bxe7 {[%emt 0:03:35]} 23. Qd1 {[%emt 0:08:04]} Ne8 {
[%emt 0:01:37]} 24. Ne2 {[%emt 0:01:15]} Bf6 {[%emt 0:00:50]} 25. Qa1 {[%emt 0:
00:00]} Nc8 {[%emt 0:02:27][%cal Yb6c8,Yc8e7,Ye7c6]} 26. Nf4 {[%emt 0:00:00]}
Ne7 {[%emt 0:00:44]} 27. Bh3 {[%emt 0:00:29]} Qc7 {[%emt 0:01:38]} 28. Bg2 {
[%emt 0:00:58]} Bxb2 {[%emt 0:00:10]} 29. Qxb2 {[%emt 0:00:19]} Nf6 {[%emt 0:
00:04]} 30. Ne2 {[%emt 0:01:40]} Nc6 {[%emt 0:01:42]} 31. Qc3 {[%emt 0:00:00]}
Qd6 {[%emt 0:01:07]} 32. Qc5 {[%emt 0:00:54]} Qe5 {[%emt 0:00:40]} 33. Qe3 {
[%emt 0:00:52]} Qa1+ {[%emt 0:01:16]} 34. Qc1 {[%emt 0:00:18]} Qxc1+ {[%emt 0:
00:51]} 35. Nxc1 $11 {[%emt 0:00:09] Endgame KBN-KNN} Nd4 {[%emt 0:00:04]} 36.
a4 {[%emt 0:01:52]} b5 {[%emt 0:01:07]} 37. axb5 {[%emt 0:00:00]} axb5 {
[%emt 0:00:16]} 38. Na2 {[%emt 0:00:51]} Kf8 {[%emt 0:00:45]} 39. Nc3 {[%emt 0:
00:34]} Nc2 {[%emt 0:00:30]} 40. Nxd5 $2 {[%emt 0:00:23]} (40. Bxd5 $14 {
keeps the upper hand.} Nxd5 41. Nxd5) 40... Nxd5 $17 {[%emt 0:00:17]} 41. Bxd5
{[%emt 0:30:25]} Nxb4 $14 {[%emt 0:30:07] KB-KN} 42. Be4 {[%emt 0:00:00]} (42.
Bb3 $17 {is a better defense.}) 42... Ke7 {[%emt 0:00:00]} 43. f4 {[%emt 0:00:
00] [#]} (43. Kf1 $142) 43... Kd6 $1 $19 {[%emt 0:00:00] aiming for ...Kc5.}
44. Kf2 {[%emt 0:00:00]} (44. d4 {is the only way for White.} Nc6 45. Kf2)
44... Kc5 {[%emt 0:00:00]} 45. Ke3 {[%emt 0:00:00]} Nc2+ {[%emt 0:00:00]} 46.
Kd2 {[%emt 0:00:00]} Nd4 {[%emt 0:00:00]} 47. Kc3 {[%emt 0:00:00]} b4+ {
[%emt 0:00:00]} 48. Kb2 {[%emt 0:00:00]} f6 {[%emt 0:00:00]} 49. f5 {[%emt 0:
00:00]} Nb5 {[%emt 0:00:00]} (49... h5 $19 {Strongly threatening ...Kd6.} 50.
Kc1 Kd6) 50. Kb3 $2 {[%emt 0:00:00] White does not recover from this.} (50. Bf3
$17 {only move.}) 50... Nd6 {[%emt 0:00:06]} 51. g4 $2 {[%emt 0:00:00] [#]} (
51. d4+ $19 Kxd4 52. Bf3) 51... Nxe4 {[%emt 0:01:17] Black mates.} 52. dxe4 {
[%emt 0:00:00]} Kd4 {[%emt 0:00:16]} 53. Kxb4 {[%emt 0:00:00]} Kxe4 {[%emt 0:
00:00] K3P-K3P} 54. Kc5 {[%emt 0:00:00]} Kf4 {[%emt 0:00:13]} 55. h3 {[%emt 0:
00:00]} Kg3 {[%emt 0:00:57]} 56. g5 {[%emt 0:00:00]} hxg5 {[%emt 0:00:47]} 57.
Kd6 {[%emt 0:00:00]} Kxh3 {[%emt 0:00:33]} 58. Ke6 {[%emt 0:00:00]} Kg4 {
[%emt 0:00:24]} 59. Kf7 {[%emt 0:00:00]} Kxf5 {[%emt 0:00:06] Weighted Error
Value: White=0.33/Black=0.13 (very precise)} 0-1

[Event "44th Chess Olympiad Open 2022"]
[Site "Chennai"]
[Date "2022.07.29"]
[Round "1.61"]
[White "Lazov, Toni"]
[Black "Faulks, Nick"]
[Result "1-0"]
[WhiteElo "2374"]
[BlackElo "1820"]
[Annotator "TA"]
[PlyCount "63"]
[EventDate "2022.??.??"]
[TimeControl "60"]

{[%evp 9,63,36,36,25,72,57,62,54,64,46,53,58,140,128,280,283,270,277,320,329,
416,438,436,426,431,434,435,448,436,362,355,366,344,335,343,358,531,529,484,
442,553,486,480,445,470,423,411,300,289,265,368,374,734,723,620,581]} 1. e4 {
[%emt 0:00:10]} c5 {[%emt 0:00:08]} 2. Nf3 {[%emt 0:00:23]} e6 {[%emt 0:00:11]}
3. d3 {[%emt 0:01:48]} Nf6 {[%emt 0:04:33]} 4. g3 {[%emt 0:02:21]} b5 {[%emt 0:
00:00]} 5. Bg2 {[%emt 0:00:20]} Bb7 {[%emt 0:00:15]} 6. O-O {[%emt 0:00:20]
B40: Sicilian: 2...e6, Unusual lines.} Qc7 {[%emt 0:01:30]} (6... d6 $11) 7.
Re1 {[%emt 0:02:35]} (7. e5 $5 {[%cal Re5f6]} Nd5 8. c4 bxc4 9. dxc4 $16) 7...
Nc6 {[%emt 0:05:19] [#]} 8. e5 $146 {[%emt 0:24:25] White is slightly better.}
({Predecessor:} 8. h4 d5 9. e5 Nd7 10. Bf4 b4 11. Nbd2 Nd4 12. c3 Nf5 13. cxb4
cxb4 14. Nb3 {0-1 (59) Lopez del Alamo,A (2283)-Liang,J (2067) Chess.com INT
2020}) 8... Nd5 {[%emt 0:03:14]} 9. c4 {[%emt 0:03:14]} bxc4 {[%emt 0:02:05]}
10. dxc4 {[%emt 0:00:06]} Nb6 {[%emt 0:00:53]} (10... Nde7 $1 $14) 11. b3 $36 {
[%emt 0:04:54] White is in control. White is more active.} g6 $2 {[%emt 0:07:
32]} (11... Be7 $16) 12. Nc3 $18 {[%emt 0:02:09][%cal Yb1c3,Yc3e4,Ye4c5]} Nc8 {
[%emt 0:04:35]} 13. Ne4 {[%emt 0:09:07]} Bg7 {[%emt 0:00:00]} 14. Nxc5 {
[%emt 0:09:21]} O-O {[%emt 0:13:08]} 15. Qxd7 {[%emt 0:01:19]} Qxd7 {[%emt 0:
02:34]} 16. Nxd7 {[%emt 0:00:11]} Rd8 {[%emt 0:00:27]} 17. Nc5 {[%emt 0:01:48]}
Rb8 {[%emt 0:00:33]} 18. Bg5 {[%emt 0:03:08]} N8e7 {[%emt 0:00:00]} 19. Rad1 {
[%emt 0:04:05] [#] And now Rxd8+ would win.} Ba8 {[%emt 0:01:19]} 20. Nd7 {
[%emt 0:07:11]} Rbc8 {[%emt 0:01:32]} 21. Rd2 {[%emt 0:03:41]} h6 {[%emt 0:02:
19]} 22. Bf6 {[%emt 0:01:46]} Bxf6 {[%emt 0:05:23]} (22... Re8 {is a better
defense.} 23. Red1 Nb8 24. Bxe7 Rxe7 25. Nf6+ Bxf6) 23. exf6 {[%emt 0:01:55]}
Nf5 {[%emt 0:00:21]} 24. g4 {[%emt 0:05:38]} Rc7 {[%emt 0:00:00]} 25. gxf5 {
[%emt 0:03:44]} Rcxd7 {[%emt 0:00:32]} 26. Rxd7 {[%emt 0:00:05]} Rxd7 {[%emt 0:
00:11]} 27. fxe6 {[%emt 0:00:55]} fxe6 {[%emt 0:00:14]} 28. Ne5 {[%emt 0:02:21]
} Nxe5 {[%emt 0:01:26]} 29. Bxa8 {[%emt 0:00:05]} Ng4 {[%emt 0:00:00]} 30. Rxe6
{[%emt 0:00:32] [#] Bd5 is the strong threat.} Rd1+ {[%emt 0:00:00]} (30... Kf7
) 31. Kg2 {[%emt 0:00:02]} Kf7 {[%emt 0:01:00]} 32. Bd5 {[%emt 0:00:59] Black
got outplayed after the opening. Weighted Error Value: White=0.15 (very
precise) /Black=0.41} 1-0

[Event "44th Chess Olympiad Open 2022"]
[Site "Chennai"]
[Date "2022.07.29"]
[Round "1.61"]
[White "Veljanoski, Andrej"]
[Black "Walrond, Niccolo"]
[Result "1-0"]
[WhiteElo "2162"]
[BlackElo "1210"]
[Annotator "NA RC"]
[PlyCount "69"]
[EventDate "2022.??.??"]
[TimeControl "60"]

1. e4 {[%emt 0:00:21]} Nf6 {[%emt 0:00:08]} 2. e5 {[%emt 0:00:21]} Nd5 {
[%emt 0:00:08]} 3. c4 {[%emt 0:00:05]} Nb6 {[%emt 0:00:20]} 4. d4 {[%emt 0:00:
00]} d6 {[%emt 0:00:49]} 5. exd6 {[%emt 0:00:08]} cxd6 {[%emt 0:00:11]} 6. Nc3
{[%emt 0:00:51]} Nc6 {[%emt 0:00:23]} 7. Be3 {[%emt 0:00:37]} g6 {[%emt 0:00:
00]} 8. Rc1 {[%emt 0:00:31]} Bg7 {[%emt 0:01:36]} 9. b3 {[%emt 0:01:03]} Bf5 {
[%emt 0:02:57]} 10. d5 {[%emt 0:08:54]} Ne5 {[%emt 0:04:22]} 11. Be2 {[%emt 0:
00:00]} Nbd7 {[%emt 0:03:15]} 12. f4 {[%emt 0:02:02]} Qa5 {[%emt 0:07:16]} 13.
fxe5 {[%emt 0:00:55]} Bxe5 {[%emt 0:00:32]} 14. Bd4 {[%emt 0:00:28]} Nc5 {
[%emt 0:01:48]} 15. Bxe5 {[%emt 0:02:44]} dxe5 {[%emt 0:01:21]} 16. Qd2 {
[%emt 0:00:18]} Rd8 {[%emt 0:09:44]} 17. Nf3 {[%emt 0:02:30]} Qc7 {[%emt 0:00:
00]} 18. O-O {[%emt 0:00:44]} e6 {[%emt 0:04:13]} 19. Qe3 {[%emt 0:00:30]} f6 {
[%emt 0:02:30]} 20. Nb5 {[%emt 0:01:17]} Qb6 {[%emt 0:05:24]} 21. b4 {[%emt 0:
00:00]} Ne4 {[%emt 0:04:06]} 22. c5 {[%emt 0:00:07]} Qa6 {[%emt 0:03:04]} 23.
Nc7+ {[%emt 0:04:31]} Ke7 {[%emt 0:01:04]} 24. Nxa6 {[%emt 0:00:14]} exd5 {
[%emt 0:00:38]} 25. Nc7 {[%emt 0:00:19]} d4 {[%emt 0:01:09]} 26. Qb3 {[%emt 0:
00:00]} Rd7 {[%emt 0:02:58]} 27. Nd5+ {[%emt 0:00:05]} Ke8 {[%emt 0:01:39]} 28.
Bb5 {[%emt 0:00:22]} Bg4 {[%emt 0:01:14]} 29. Nxf6+ {[%emt 0:00:05]} Nxf6 {
[%emt 0:00:33]} 30. Nxe5 {[%emt 0:00:04]} Rf8 {[%emt 0:00:52]} 31. Rxf6 {
[%emt 0:00:11]} Rxf6 {[%emt 0:00:15]} 32. Qg8+ {[%emt 0:00:09]} Rf8 {[%emt 0:
00:00]} 33. Qg7 {[%emt 0:00:11]} d3 {[%emt 0:03:41]} 34. Bxd7+ {[%emt 0:00:15]}
Bxd7 {[%emt 0:00:24]} 35. Qxd7# {[%emt 0:00:08]} 1-0

[Event "44th Chess Olympiad Open 2022"]
[Site "Chennai"]
[Date "2022.07.29"]
[Round "1.61"]
[White "Kovacova, Zuzana"]
[Black "Stanojoski, Zvonko"]
[Result "0-1"]
[WhiteElo "2050"]
[BlackElo "2412"]
[Annotator "TA"]
[PlyCount "42"]
[EventDate "2022.??.??"]
[TimeControl "60"]

{[%evp 9,42,0,-2,-4,3,-18,17,-3,0,-35,-43,-67,-38,-32,-35,-31,-26,-29,-13,-32,
-31,-50,-57,-51,-56,-164,-168,-164,-152,-279,-277,-397,-374,-404,-374]} 1. e4 {
[%emt 0:00:05]} c5 {[%emt 0:00:15]} 2. Nc3 {[%emt 0:00:06]} g6 {[%emt 0:00:51]}
3. g3 {[%emt 0:00:04]} Bg7 {[%emt 0:00:06]} 4. Bg2 {[%emt 0:00:04]} h5 {
[%emt 0:00:28]} 5. h4 {[%emt 0:00:15]} Nc6 {[%emt 0:00:42]} 6. d3 {[%emt 0:00:
00] B23: Closed Sicilian: Lines without g3.} Rb8 {[%emt 0:00:19] [#]} 7. Be3
$146 {[%emt 0:00:46]} ({Predecessor:} 7. Nf3 d6 8. Ng5 Nf6 9. O-O O-O 10. Nd5
Nxd5 11. exd5 Ne5 12. Bf4 b5 13. c3 a5 {0-1 (62) Cori,J (2652)-Iturrizaga
Bonelli,E (2607) chess24.com INT 2020}) 7... Nd4 {[%emt 0:01:58]} 8. Qc1 {
[%emt 0:07:58] The position is equal.} Nf6 {[%emt 0:02:17]} 9. f3 {[%emt 0:00:
00]} b5 {[%emt 0:13:51][%cal Yb7b5,Yb5b4]} 10. Qd2 {[%emt 0:06:38]} d6 {
[%emt 0:03:01] Black is more active.} (10... b4 $5 {[%cal Rb4c3]} 11. Nce2 e5
$11) 11. Nge2 {[%emt 0:05:11]} b4 {[%emt 0:00:34]} 12. Nd1 {[%emt 0:00:05]} e5
{[%emt 0:02:04]} 13. O-O {[%emt 0:00:53]} d5 {[%emt 0:03:21]} 14. Bg5 {[%emt 0:
00:00]} dxe4 {[%emt 0:03:05]} 15. dxe4 {[%emt 0:01:05]} Ba6 {[%emt 0:01:17]
[%cal Yc8a6,Ya6f1,Yf1g2,Yg2f3]} 16. Nxd4 {[%emt 0:04:57][%cal Yd4b3] [#] And
now Nb3! would win.} Bxf1 {[%emt 0:04:35]} ({Don't take} 16... Qxd4+ 17. Rf2
$14) (16... exd4 $2 17. e5 $18) 17. Nc6 {[%emt 0:02:20]} (17. Ne6 $15 Qxd2 18.
Nxg7+ Kf8 19. Bxd2) 17... Qxd2 $19 {[%emt 0:00:20]} 18. Bxd2 {[%emt 0:00:00]}
Bxg2 {[%emt 0:00:19]} 19. Nxb8 {[%emt 0:00:39]} (19. Kxg2 $17 Rb6 20. Na5)
19... Bxf3 {[%emt 0:00:13]} 20. Be3 {[%emt 0:05:53]} (20. Nf2 {was necessary.})
20... Nxe4 {[%emt 0:00:51]} 21. Na6 {[%emt 0:00:11]} O-O {[%emt 0:00:00]
Weighted Error Value: White=0.43/Black=0.08 (flawless)} 0-1

[Event "44th Chess Olympiad Open 2022"]
[Site "Chennai"]
[Date "2022.07.29"]
[Round "1.61"]
[White "Gontcharov, Serguei"]
[Black "Nikolovski, Nikola"]
[Result "0-1"]
[WhiteElo "1864"]
[BlackElo "2366"]
[Annotator "TA"]
[PlyCount "106"]
[EventDate "2022.??.??"]
[TimeControl "60"]

{[%evp 24,106,50,27,18,31,25,0,0,-33,-33,-27,-31,-35,-30,-29,-10,-8,0,0,0,-23,
-15,-27,0,-31,-31,-159,-168,-178,-175,-216,-209,-215,-215,-227,-227,-227,-210,
-227,-227,-227,-227,-227,-227,-227,-233,-324,-300,-295,-295,-337,-256,-416,
-416,-424,-416,-489,-408,-468,-370,-455,-416,-624,-624,-624,-449,-29967,-29968,
-29968,-29969,-29968,-29970,-29970,-29971,-29971,-29971,-29974,-29974,-29975,
-29976,-29970,-29971,-12845,-5163]} 1. e4 {[%emt 0:00:04]} c5 {[%emt 0:00:23]}
2. Nf3 {[%emt 0:00:06]} Nc6 {[%emt 0:00:44]} 3. d4 {[%emt 0:00:10]} cxd4 {
[%emt 0:00:07]} 4. Nxd4 {[%emt 0:00:10]} g6 {[%emt 0:00:31]} 5. c4 {[%emt 0:00:
00]} Bg7 {[%emt 0:01:31]} 6. Be3 {[%emt 0:00:07]} Nf6 {[%emt 0:01:01]} 7. Nc3 {
[%emt 0:02:27]} d6 {[%emt 0:00:19]} 8. Be2 {[%emt 0:07:20]} O-O {[%emt 0:00:54]
} 9. O-O {[%emt 0:00:45]} Bd7 {[%emt 0:01:04]} 10. Rc1 {[%emt 0:03:24]} Nxd4 {
[%emt 0:19:27]} 11. Bxd4 {[%emt 0:00:34]} Bc6 {[%emt 0:00:44]} 12. f3 {[%emt 0:
00:00] 12.Qd3 is not played anymore.} a5 {[%emt 0:01:25]} 13. Nd5 {[%emt 0:00:
00]} Nd7 {[%emt 0:02:49] B38: Sicilian: Maroczy Bind with 5...Bg7 and 7...0-0.}
14. Bxg7 {[%emt 0:02:19]} Kxg7 {[%emt 0:02:15]} 15. Qd4+ {[%emt 0:00:38]} e5 {
[%emt 0:01:20] [#] The position is equal.} 16. Qc3 $146 {[%emt 0:01:40]} ({
Predecessor:} 16. Qd2 Nc5 17. Ne3 Ne6 18. Rfd1 Qb6 19. Kh1 Nd4 20. Nc2 Nxc2 21.
Rxc2 Rad8 22. Rc3 {½-½ (68) Reimanis,R (2370)-Mikaelyan,A (2467) Chess.com
INT 2019}) 16... Bxd5 {[%emt 0:05:08]} 17. cxd5 {[%emt 0:00:28]} Qb6+ {[%emt 0:
00:00]} 18. Kh1 {[%emt 0:00:18]} Rac8 {[%emt 0:03:05]} 19. Qd2 {[%emt 0:06:05]}
Nc5 {[%emt 0:03:13]} 20. Rc2 {[%emt 0:06:52]} f5 {[%emt 0:01:17]} 21. exf5 {
[%emt 0:09:11]} Rxf5 {[%emt 0:02:26]} 22. Rfc1 {[%emt 0:11:50]} Rcf8 {[%emt 0:
00:00]} 23. Qe3 {[%emt 0:07:21]} Kg8 {[%emt 0:09:07]} 24. Bd3 {[%emt 0:05:14]}
Rf4 {[%emt 0:05:15]} 25. Rxc5 {[%emt 0:04:05] White is on the road to losing.}
(25. Be4 $15) 25... dxc5 $17 {[%emt 0:01:27]} 26. Qxe5 {[%emt 0:00:11]} Rd4 {
[%emt 0:01:04]} 27. Bc4 {[%emt 0:06:01]} Qf6 {[%emt 0:02:52]} 28. Qxf6 {
[%emt 0:02:50]} Rxf6 $19 {[%emt 0:00:08] Endgame KRR-KRB} 29. a4 {[%emt 0:00:
27]} Kf8 {[%emt 0:03:39]} 30. b3 {[%emt 0:00:19]} Rf7 {[%emt 0:00:00]} 31. h3 {
[%emt 0:00:19]} Re7 {[%emt 0:04:11]} 32. Rc2 {[%emt 0:01:01]} Kg7 {[%emt 0:06:
47]} 33. Kg1 {[%emt 0:00:07]} h5 {[%emt 0:06:58]} 34. Kf2 {[%emt 0:00:00]} h4 {
[%emt 0:00:06]} 35. g3 {[%emt 0:04:23]} hxg3+ {[%emt 0:01:21]} 36. Kxg3 {
[%emt 0:00:05]} g5 {[%emt 0:00:21]} 37. Rh2 {[%emt 0:01:01]} Kf6 {[%emt 0:03:
04]} 38. Rf2 $2 {[%emt 0:01:26] [#]} (38. d6 Re3 39. d7) 38... Re3 {[%emt 0:01:
07]} 39. Rc2 {[%emt 0:01:22]} Ke5 {[%emt 0:01:18]} 40. Rc1 {[%emt 0:00:00]} b6
{[%emt 0:02:56]} 41. Rc2 {[%emt 0:30:01]} Kf5 {[%emt 0:03:28]} 42. Rf2 {
[%emt 0:00:00]} Re1 {[%emt 0:01:47]} 43. Rc2 {[%emt 0:00:00]} (43. Rg2 $142)
43... Red1 {[%emt 0:03:32]} 44. Re2 {[%emt 0:00:00]} R4d2 {[%emt 0:00:47]
White must now prevent ...Rxe2.} 45. h4 {[%emt 0:00:00] [#]} (45. d6 $19) 45...
gxh4+ {[%emt 0:03:54]} 46. Kxh4 {[%emt 0:00:00]} Rxe2 {[%emt 0:03:49]} 47. Bxe2
{[%emt 0:00:00] KR-KB} Rd2 {[%emt 0:01:39]} 48. Bc4 {[%emt 0:01:16]} Kf4 {
[%emt 0:00:26][%cal Rd2h2]} 49. Kh5 {[%emt 0:00:01]} Kxf3 {[%emt 0:00:45]} 50.
Kg5 {[%emt 0:01:06]} Ke4 {[%emt 0:00:08]} 51. Kf6 {[%emt 0:00:42]} Rxd5 {
[%emt 0:00:15]} 52. Ke6 {[%emt 0:01:10]} Rd4 {[%emt 0:00:39]} 53. Bf1 {[%emt 0:
00:00]} Rb4 {[%emt 0:14:18] Weighted Error Value: White=0.46/Black=0.09 
(flawless)} 0-1

[Event "44th Chess Olympiad Open 2022"]
[Site "Chennai"]
[Date "2022.07.29"]
[Round "1.62"]
[White "Hernandez Guerrero, Gilberto"]
[Black "Kamara, Ansumana"]
[Result "1-0"]
[WhiteElo "2560"]
[BlackElo "1896"]
[Annotator "TA"]
[PlyCount "95"]
[EventDate "2022.??.??"]
[TimeControl "60"]

{[%evp 9,94,13,17,17,33,19,27,22,23,26,26,2,0,0,44,41,67,59,63,74,70,54,96,65,
147,138,128,130,153,145,172,172,172,172,172,172,172,172,213,213,213,213,203,
200,213,213,857,836,794,734,2598,1943,1738,1547,29961,29956,29977,10054,29980,
29981,29985,29986,29986,29987,29987,29988,29988,29989,29989,29990,29991,29992,
29992,29993,29993,29994,29994,29993,29993,29993,29994,29995,29995,29996,29996,
29997,29999]} 1. d4 {[%emt 0:00:16]} Nf6 {[%emt 0:00:15]} 2. Bg5 {[%emt 0:00:
00]} g6 {[%emt 0:00:30]} 3. Bxf6 {[%emt 0:00:15]} exf6 {[%emt 0:00:10]} 4. c4 {
[%emt 0:00:26]} Bg7 {[%emt 0:00:10]} 5. Nc3 {[%emt 0:00:13]} c6 {[%emt 0:00:34]
} 6. e3 {[%emt 0:00:38] A45: Trompowsky Attack.} d6 {[%emt 0:00:11]} 7. g3 {
[%emt 0:01:54]} O-O {[%emt 0:00:20]} 8. Bg2 {[%emt 0:00:21] White has an edge.}
Re8 {[%emt 0:00:35]} 9. Nge2 {[%emt 0:00:34]} Nd7 {[%emt 0:00:41] [#]} 10. b4
$146 {[%emt 0:02:18]} ({Predecessor:} 10. O-O Nb6 11. b3 d5 12. cxd5 Nxd5 13.
Nxd5 cxd5 14. Nc3 Be6 15. Qf3 Qd7 16. Nxd5 {0-1 (38) Simonovic,M (2119)-Isha,S
(2276) Chess.com INT 2021}) 10... Nb6 {[%emt 0:02:15]} 11. c5 {[%emt 0:02:50]}
dxc5 {[%emt 0:00:35]} 12. bxc5 {[%emt 0:00:41]} Nd7 {[%emt 0:00:49]} 13. O-O {
[%emt 0:01:27]} f5 {[%emt 0:01:06]} 14. Rb1 {[%emt 0:02:19]} Nf6 {[%emt 0:00:
00]} 15. Qb3 {[%emt 0:06:54]} Qc7 {[%emt 0:00:52] White now steadily converts
the win.} 16. Rfd1 {[%emt 0:00:31] White is more active.} Ne4 {[%emt 0:01:18]}
(16... Qe7 $14) 17. Nxe4 $16 {[%emt 0:01:46]} fxe4 {[%emt 0:00:37]} 18. Nc3 {
[%emt 0:00:15][%cal Ye2c3,Yc3e4,Ye4d6]} Rb8 {[%emt 0:00:36]} 19. Nxe4 {[%emt 0:
07:44]} Bf5 {[%emt 0:01:32]} 20. Nd6 {[%emt 0:01:15]} Bxb1 {[%emt 0:00:00]} 21.
Nxe8 {[%emt 0:00:11]} (21. Qxb1 Red8 $11) 21... Bxa2 {[%emt 0:00:00]} 22. Qxa2
{[%emt 0:00:17]} ({But not} 22. Nxc7 $6 Bxb3 23. Rb1 Rc8 $16) 22... Rxe8 {
[%emt 0:01:47]} 23. Qxa7 {[%emt 0:00:09] aiming for Rb1.} Bf6 {[%emt 0:05:17]}
24. Rb1 {[%emt 0:05:27]} Re7 {[%emt 0:00:27]} 25. d5 {[%emt 0:00:00]} cxd5 {
[%emt 0:01:38]} 26. Bxd5 {[%emt 0:00:08]} Qe5 {[%emt 0:06:44]} 27. Rxb7 {
[%emt 0:00:49]} Qxd5 $2 {[%emt 0:03:17] [#]} (27... Rxb7 28. Qxb7 Qe7) 28. Rxe7
$18 {[%emt 0:02:14]} Bxe7 {[%emt 0:00:44]} 29. Qxe7 {[%emt 0:00:10] Endgame
KQ-KQ} h5 {[%emt 0:00:58]} 30. Qe8+ {[%emt 0:02:37]} Kg7 {[%emt 0:00:46]} 31.
c6 {[%emt 0:00:21] [#] Threatening mate with c7.} h4 {[%emt 0:00:34]} 32. Qd7 {
[%emt 0:00:43]} ({Less strong is} 32. c7 h3 33. Qh8+ (33. f3 Qxf3 34. Qe5+ Kh7
$11) 33... Kxh8 $18) 32... Qb3 {[%emt 0:06:14]} 33. Qd4+ {[%emt 0:01:13]} (33.
c7 $142 h3 34. Kf1 Qc4+ 35. Ke1 Qc3+ 36. Ke2 Qb2+ 37. Kf3 Qe5 38. c8=Q Qf6+ 39.
Ke4) 33... f6 {[%emt 0:01:00]} 34. gxh4 {[%emt 0:00:00] White mates.} Qc2 {
[%emt 0:01:10]} 35. Qd7+ {[%emt 0:01:24]} Kh6 {[%emt 0:00:39]} 36. c7 {[%emt 0:
00:43]} Qb1+ {[%emt 0:00:36]} 37. Kg2 {[%emt 0:00:00]} Qe4+ {[%emt 0:00:17]}
38. Kf1 {[%emt 0:06:33]} Qb1+ {[%emt 0:00:15]} 39. Ke2 {[%emt 0:00:17]} Qc2+ {
[%emt 0:00:10]} 40. Kf3 {[%emt 0:00:19]} f5 {[%emt 0:04:37]} 41. c8=Q {[%emt 0:
30:16][%cal Rc8h8]} Qe4+ {[%emt 0:30:37]} 42. Ke2 {[%emt 0:00:09][%cal Rc8h8]}
Qg4+ {[%emt 0:01:24]} 43. Kd2 {[%emt 0:00:09][%cal Rc8h8]} Qb4+ {[%emt 0:01:04]
} 44. Qc3 {[%emt 0:00:09]} Qf8 {[%emt 0:00:00]} 45. Qcd4 {[%emt 0:00:30]} g5 {
[%emt 0:02:01]} 46. hxg5+ {[%emt 0:01:37]} Kg6 {[%emt 0:01:31]} 47. Qh4 {
[%emt 0:01:05][%csl Gh4][%cal Rd7h7]} f4 {[%emt 0:03:28]} 48. Qdh7# {[%emt 0:
00:14] Weighted Error Value: White=0.04 (flawless) /Black=0.68} 1-0